[Event "Early-Titled-Tuesday-Blitz-June-18-2024"]
[Site "Chess.com"]
[Date "2024.06.18"]
[Round "4"]
[White "Forge13"]
[Black "ImportedItalianMaple"]
[Result "1/2-1/2"]
[WhiteElo "2695"]
[BlackElo "2516"]
[TimeControl "180+1"]
[EndTime "8:40:36 PDT"]
[Termination "Game drawn by repetition"]

1. e4 {[%clk 0:03:00.9]} 1... g6 {[%clk 0:03:00]} 2. d4 {[%clk 0:03:00.5]} 2...
Bg7 {[%clk 0:03:00.5]} 3. Nc3 {[%clk 0:03:01.1]} 3... d5 {[%clk 0:03:01]} 4.
exd5 {[%clk 0:02:59.3]} 4... Nf6 {[%clk 0:03:01.4]} 5. Nf3 {[%clk 0:02:58.2]}
5... Nxd5 {[%clk 0:03:01.1]} 6. Be2 {[%clk 0:02:55.3]} 6... Nxc3 {[%clk
0:02:58.9]} 7. bxc3 {[%clk 0:02:56.2]} 7... c5 {[%clk 0:02:59.2]} 8. O-O {[%clk
0:02:56.5]} 8... O-O {[%clk 0:02:59.2]} 9. h3 {[%clk 0:02:54.6]} 9... Nc6 {[%clk
0:02:54.3]} 10. Be3 {[%clk 0:02:54.3]} 10... Qa5 {[%clk 0:02:46.6]} 11. Qd3
{[%clk 0:02:42.5]} 11... Bf5 {[%clk 0:02:43.9]} 12. Qb5 {[%clk 0:02:42.2]} 12...
Qxb5 {[%clk 0:02:40.5]} 13. Bxb5 {[%clk 0:02:43.1]} 13... cxd4 {[%clk
0:02:34.8]} 14. cxd4 {[%clk 0:02:34.7]} 14... Bxc2 {[%clk 0:02:32.5]} 15. Rfc1
{[%clk 0:02:13.5]} 15... Be4 {[%clk 0:02:31.4]} 16. Nd2 {[%clk 0:01:56.3]} 16...
Bd5 {[%clk 0:02:29.2]} 17. Nb3 {[%clk 0:01:56.9]} 17... Bxb3 {[%clk 0:02:08.3]}
18. axb3 {[%clk 0:01:57.8]} 18... Nxd4 {[%clk 0:02:08.7]} 19. Bxd4 {[%clk
0:01:50.8]} 19... Bxd4 {[%clk 0:02:09.6]} 20. Ra2 {[%clk 0:01:50.7]} 20... a6
{[%clk 0:02:08]} 21. Be2 {[%clk 0:01:44.7]} 21... Bb6 {[%clk 0:02:01.6]} 22. Bf3
{[%clk 0:01:43.3]} 22... Rab8 {[%clk 0:01:52]} 23. Rd2 {[%clk 0:01:41.6]} 23...
Rfd8 {[%clk 0:01:48.1]} 24. Rcd1 {[%clk 0:01:33.2]} 24... a5 {[%clk 0:01:26.8]}
25. Rxd8+ {[%clk 0:01:27.9]} 25... Rxd8 {[%clk 0:01:27.7]} 26. Rxd8+ {[%clk
0:01:26.8]} 26... Bxd8 {[%clk 0:01:28.6]} 27. Bxb7 {[%clk 0:01:27.1]} 27... Bb6
{[%clk 0:01:25.2]} 28. Bd5 {[%clk 0:01:22.5]} 28... e6 {[%clk 0:01:24.4]} 29.
Bc4 {[%clk 0:01:23.1]} 29... Kf8 {[%clk 0:01:24.6]} 30. Kf1 {[%clk 0:01:23.3]}
30... Ke7 {[%clk 0:01:25.1]} 31. Ke2 {[%clk 0:01:20.4]} 31... g5 {[%clk
0:01:24.9]} 32. g4 {[%clk 0:01:14.8]} 32... f5 {[%clk 0:01:23.4]} 33. f3 {[%clk
0:01:13.9]} 33... Kf6 {[%clk 0:01:22.7]} 34. Kd3 {[%clk 0:01:13.7]} 34... Ke5
{[%clk 0:01:21]} 35. Ke2 {[%clk 0:01:14]} 35... h6 {[%clk 0:01:19]} 36. Ba6
{[%clk 0:01:12.7]} 36... Kf4 {[%clk 0:01:17]} 37. Bc8 {[%clk 0:01:12.7]} 37...
fxg4 {[%clk 0:01:16.7]} 38. hxg4 {[%clk 0:01:12.2]} 38... e5 {[%clk 0:01:16.8]}
39. Bb7 {[%clk 0:01:11.5]} 39... Kg3 {[%clk 0:01:12.9]} 40. Be4 {[%clk
0:01:10.5]} 40... Kh4 {[%clk 0:01:11.1]} 41. Bg6 {[%clk 0:01:06.5]} 41... Bc5
{[%clk 0:01:06.3]} 42. Bh5 {[%clk 0:01:02.8]} 42... Kg3 {[%clk 0:01:06]} 43. Bg6
{[%clk 0:01:02.9]} 43... Bd4 {[%clk 0:01:00.5]} 44. Bh7 {[%clk 0:01:01.8]} 44...
Kf4 {[%clk 0:00:57.8]} 45. Bg6 {[%clk 0:01:00.9]} 45... Bc5 {[%clk 0:00:58.3]}
46. Bh7 {[%clk 0:01:00.8]} 46... Kg3 {[%clk 0:00:49.9]} 47. Be4 {[%clk
0:00:57.9]} 47... Bd4 {[%clk 0:00:50.6]} 48. Bf5 {[%clk 0:00:57.8]} 48... Bb2
{[%clk 0:00:47.5]} 49. Be4 {[%clk 0:00:57.5]} 49... Bd4 {[%clk 0:00:44.6]} 50.
Bd3 {[%clk 0:00:57.4]} 50... Bc5 {[%clk 0:00:44.9]} 51. Be4 {[%clk 0:00:57.6]}
51... Bf8 {[%clk 0:00:45.5]} 52. Bd3 {[%clk 0:00:57.6]} 52... Kf4 {[%clk
0:00:41.4]} 53. Be4 {[%clk 0:00:57]} 53... Kg3 {[%clk 0:00:41.7]} 54. Bd3 {[%clk
0:00:57.2]} 54... Kh4 {[%clk 0:00:42.6]} 55. Bg6 {[%clk 0:00:57.5]} 55... Kh3
{[%clk 0:00:42.8]} 56. Bd3 {[%clk 0:00:57.2]} 56... Kg3 {[%clk 0:00:43.4]} 57.
Bc2 {[%clk 0:00:57]} 57... Kf4 {[%clk 0:00:43]} 58. Be4 {[%clk 0:00:56.9]} 58...
Kg3 {[%clk 0:00:43.5]} 1/2-1/2

[Event "Early-Titled-Tuesday-Blitz-June-18-2024"]
[Site "Chess.com"]
[Date "2024.06.18"]
[Round "4"]
[White "jamengrand"]
[Black "viktorskliarov"]
[Result "0-1"]
[WhiteElo "2305"]
[BlackElo "2653"]
[TimeControl "180+1"]
[EndTime "8:40:38 PDT"]
[Termination "viktorskliarov won by resignation"]

1. e4 {[%clk 0:03:00.9]} 1... c5 {[%clk 0:03:00]} 2. Nf3 {[%clk 0:03:01]} 2...
Nc6 {[%clk 0:03:00.5]} 3. b4 {[%clk 0:03:00.6]} 3... b6 {[%clk 0:02:59.9]} 4. b5
{[%clk 0:02:57]} 4... Nd4 {[%clk 0:02:59.5]} 5. Nxd4 {[%clk 0:02:48.9]} 5...
cxd4 {[%clk 0:02:59.5]} 6. Bc4 {[%clk 0:02:48.9]} 6... g6 {[%clk 0:02:56.1]} 7.
O-O {[%clk 0:02:46.8]} 7... Bg7 {[%clk 0:02:56]} 8. e5 {[%clk 0:02:46.6]} 8...
Bb7 {[%clk 0:02:42.3]} 9. Re1 {[%clk 0:02:44]} 9... Qc7 {[%clk 0:02:35.9]} 10.
d3 {[%clk 0:02:42.5]} 10... Bxe5 {[%clk 0:02:26.7]} 11. Nd2 {[%clk 0:02:39.5]}
11... Bxh2+ {[%clk 0:02:13.2]} 12. Kh1 {[%clk 0:02:39.6]} 12... Be5 {[%clk
0:02:11.3]} 13. Nf3 {[%clk 0:02:36.8]} 13... Bf6 {[%clk 0:01:33.3]} 14. Bb2
{[%clk 0:02:29.2]} 14... Nh6 {[%clk 0:01:24.6]} 15. Bxd4 {[%clk 0:02:17.1]}
15... Ng4 {[%clk 0:01:08.3]} 16. Bxf6 {[%clk 0:01:50.8]} 16... Nxf6 {[%clk
0:01:08.1]} 17. Qe2 {[%clk 0:01:38.6]} 17... e6 {[%clk 0:01:07.1]} 18. Qe5
{[%clk 0:00:52.7]} 18... Qxe5 {[%clk 0:01:06.2]} 19. Nxe5 {[%clk 0:00:52.8]}
19... h5 {[%clk 0:01:00.9]} 20. f3 {[%clk 0:00:31.5]} 20... h4 {[%clk
0:00:59.2]} 21. Kh2 {[%clk 0:00:22.1]} 21... Ke7 {[%clk 0:00:58.5]} 22. Bb3
{[%clk 0:00:21.4]} 22... Rac8 {[%clk 0:00:41.7]} 23. a4 {[%clk 0:00:20.3]} 23...
Bd5 {[%clk 0:00:18]} 24. c4 {[%clk 0:00:17.9]} 24... Bb7 {[%clk 0:00:17]} 25. d4
{[%clk 0:00:17.7]} 25... d6 {[%clk 0:00:16.8]} 26. Nd3 {[%clk 0:00:18]} 26... h3
{[%clk 0:00:16.7]} 27. g3 {[%clk 0:00:17.8]} 27... Bxf3 {[%clk 0:00:16.2]} 28.
a5 {[%clk 0:00:17.5]} 28... Ng4+ {[%clk 0:00:16.5]} 0-1

[Event "Early-Titled-Tuesday-Blitz-June-18-2024"]
[Site "Chess.com"]
[Date "2024.06.18"]
[Round "4"]
[White "Athanasios2"]
[Black "artin10862"]
[Result "0-1"]
[WhiteElo "2752"]
[BlackElo "2938"]
[TimeControl "180+1"]
[EndTime "8:40:39 PDT"]
[Termination "artin10862 won by resignation"]

1. Nf3 {[%clk 0:03:00.9]} 1... b6 {[%clk 0:02:58.6]} 2. g3 {[%clk 0:02:59.8]}
2... Bb7 {[%clk 0:02:59.5]} 3. Bg2 {[%clk 0:03:00.1]} 3... g6 {[%clk 0:02:59.3]}
4. O-O {[%clk 0:03:00.2]} 4... Bg7 {[%clk 0:03:00]} 5. c4 {[%clk 0:03:00.4]}
5... Nf6 {[%clk 0:02:58.5]} 6. Nc3 {[%clk 0:03:00.7]} 6... O-O {[%clk
0:02:58.7]} 7. b3 {[%clk 0:03:00.9]} 7... Ne4 {[%clk 0:02:54.2]} 8. Qc2 {[%clk
0:02:52]} 8... Nxc3 {[%clk 0:02:51.6]} 9. dxc3 {[%clk 0:02:52.5]} 9... e5 {[%clk
0:02:49.5]} 10. Rd1 {[%clk 0:02:50.5]} 10... d6 {[%clk 0:02:49.1]} 11. h4 {[%clk
0:02:45.6]} 11... Nd7 {[%clk 0:02:48.3]} 12. Bg5 {[%clk 0:02:44.3]} 12... f6
{[%clk 0:02:32.9]} 13. Be3 {[%clk 0:02:44.2]} 13... Re8 {[%clk 0:02:21.1]} 14.
b4 {[%clk 0:02:25.4]} 14... Qe7 {[%clk 0:02:16.7]} 15. h5 {[%clk 0:02:14.8]}
15... Nf8 {[%clk 0:02:12.8]} 16. hxg6 {[%clk 0:02:09]} 16... hxg6 {[%clk
0:02:12.7]} 17. c5 {[%clk 0:02:09.5]} 17... d5 {[%clk 0:02:00.6]} 18. Nh4 {[%clk
0:02:01]} 18... Qf7 {[%clk 0:02:00.4]} 19. Nf3 {[%clk 0:01:50.4]} 19... g5
{[%clk 0:01:50.2]} 20. b5 {[%clk 0:01:41]} 20... Rad8 {[%clk 0:01:48.7]} 21. c6
{[%clk 0:01:40.9]} 21... Bc8 {[%clk 0:01:48.5]} 22. a4 {[%clk 0:01:31.3]} 22...
a5 {[%clk 0:01:47.3]} 23. bxa6 {[%clk 0:01:27.8]} 23... Bxa6 {[%clk 0:01:46.9]}
24. a5 {[%clk 0:01:28.5]} 24... bxa5 {[%clk 0:01:40]} 25. Rxa5 {[%clk
0:01:28.4]} 25... Bc4 {[%clk 0:01:40.6]} 26. Ra7 {[%clk 0:00:56.9]} 26... Rd6
{[%clk 0:01:31.7]} 27. Nd2 {[%clk 0:00:49.4]} 27... Bxe2 {[%clk 0:01:27.4]} 28.
Rb1 {[%clk 0:00:49.4]} 28... Rxc6 {[%clk 0:01:21.1]} 29. Nb3 {[%clk 0:00:49.3]}
29... Bh5 {[%clk 0:01:17.7]} 30. Na5 {[%clk 0:00:48.2]} 30... Bg6 {[%clk
0:01:12.3]} 31. Qd2 {[%clk 0:00:45.6]} 31... Rd6 {[%clk 0:01:06.8]} 32. Rbb7
{[%clk 0:00:45.1]} 32... Rd7 {[%clk 0:01:06.7]} 33. Bc5 {[%clk 0:00:42.4]} 33...
Ne6 {[%clk 0:00:49.4]} 34. Bxd5 {[%clk 0:00:37.5]} 34... Be4 {[%clk 0:00:49.3]}
35. Bxe6 {[%clk 0:00:35.7]} 35... Qxe6 {[%clk 0:00:46.8]} 36. Qe2 {[%clk
0:00:29.6]} 36... Qh3 {[%clk 0:00:42.6]} 37. f3 {[%clk 0:00:23]} 37... Qxg3+
{[%clk 0:00:42.5]} 0-1

[Event "Early-Titled-Tuesday-Blitz-June-18-2024"]
[Site "Chess.com"]
[Date "2024.06.18"]
[Round "4"]
[White "Tol_Tol"]
[Black "Likvidator228"]
[Result "0-1"]
[WhiteElo "2359"]
[BlackElo "2540"]
[TimeControl "180+1"]
[EndTime "8:40:43 PDT"]
[Termination "Likvidator228 won on time"]

1. d4 {[%clk 0:03:00.9]} 1... f5 {[%clk 0:02:59.7]} 2. Nf3 {[%clk 0:02:59.9]}
2... Nf6 {[%clk 0:03:00]} 3. Nbd2 {[%clk 0:02:59.7]} 3... g6 {[%clk 0:02:59.9]}
4. b3 {[%clk 0:02:59.5]} 4... Bg7 {[%clk 0:03:00.2]} 5. Bb2 {[%clk 0:03:00]}
5... O-O {[%clk 0:03:00.8]} 6. e3 {[%clk 0:03:00.6]} 6... d6 {[%clk 0:03:01.2]}
7. Bc4+ {[%clk 0:03:01.2]} 7... e6 {[%clk 0:03:01.1]} 8. Qe2 {[%clk 0:02:59.8]}
8... Kh8 {[%clk 0:03:00.8]} 9. h4 {[%clk 0:02:59.4]} 9... Nc6 {[%clk 0:02:57.1]}
10. a3 {[%clk 0:02:34.6]} 10... Qe7 {[%clk 0:02:53.2]} 11. h5 {[%clk 0:02:27.5]}
11... Nxh5 {[%clk 0:02:52.1]} 12. O-O-O {[%clk 0:02:23.7]} 12... e5 {[%clk
0:02:51.6]} 13. dxe5 {[%clk 0:02:21.5]} 13... dxe5 {[%clk 0:02:45.3]} 14. e4
{[%clk 0:02:09.5]} 14... f4 {[%clk 0:02:20.9]} 15. Bd5 {[%clk 0:01:49.7]} 15...
Nd8 {[%clk 0:02:09.2]} 16. Nc4 {[%clk 0:01:34.1]} 16... c6 {[%clk 0:02:07.5]}
17. Nfxe5 {[%clk 0:01:31.4]} 17... cxd5 {[%clk 0:02:05.6]} 18. Rxh5 {[%clk
0:01:23.8]} 18... gxh5 {[%clk 0:02:03.8]} 19. Qxh5 {[%clk 0:01:24.5]} 19... Qe8
{[%clk 0:01:44.5]} 20. Qh2 {[%clk 0:00:56.8]} 20... dxc4 {[%clk 0:01:32.1]} 21.
Rh1 {[%clk 0:00:54]} 21... h5 {[%clk 0:01:13.8]} 22. Nxc4 {[%clk 0:00:41.6]}
22... Bxb2+ {[%clk 0:01:12.8]} 23. Kxb2 {[%clk 0:00:41.2]} 23... Be6 {[%clk
0:01:01]} 24. Nd6 {[%clk 0:00:40.7]} 24... Qg6 {[%clk 0:01:00.7]} 25. e5 {[%clk
0:00:28.2]} 25... Nf7 {[%clk 0:00:55.2]} 26. Nxb7 {[%clk 0:00:19.8]} 26... Nxe5
{[%clk 0:00:55.2]} 27. Nc5 {[%clk 0:00:18.3]} 27... Ng4 {[%clk 0:00:37.4]} 28.
Qh4 {[%clk 0:00:17]} 28... Bf7 {[%clk 0:00:32.9]} 29. f3 {[%clk 0:00:12]} 29...
Qf6+ {[%clk 0:00:32.7]} 0-1

[Event "Early-Titled-Tuesday-Blitz-June-18-2024"]
[Site "Chess.com"]
[Date "2024.06.18"]
[Round "4"]
[White "Mikhail_Bryakin"]
[Black "Murad_Ibrahimli"]
[Result "1-0"]
[WhiteElo "2767"]
[BlackElo "2921"]
[TimeControl "180+1"]
[EndTime "8:40:44 PDT"]
[Termination "Mikhail_Bryakin won by resignation"]

1. Nf3 {[%clk 0:03:00.9]} 1... d5 {[%clk 0:02:59]} 2. d4 {[%clk 0:02:59.9]} 2...
Nf6 {[%clk 0:02:58.6]} 3. Bf4 {[%clk 0:02:59.2]} 3... c5 {[%clk 0:02:52.6]} 4.
e3 {[%clk 0:02:59.4]} 4... Nc6 {[%clk 0:02:50.9]} 5. c3 {[%clk 0:02:58.7]} 5...
Qb6 {[%clk 0:02:49.5]} 6. Qc2 {[%clk 0:02:59]} 6... Bg4 {[%clk 0:02:40.6]} 7.
Nbd2 {[%clk 0:02:58.4]} 7... e6 {[%clk 0:02:40.1]} 8. Ne5 {[%clk 0:02:52.1]}
8... Nxe5 {[%clk 0:02:34.7]} 9. Bxe5 {[%clk 0:02:52.1]} 9... Bf5 {[%clk
0:02:34.2]} 10. Qa4+ {[%clk 0:02:49.8]} 10... Nd7 {[%clk 0:02:34.6]} 11. Bb5
{[%clk 0:02:48]} 11... Rd8 {[%clk 0:02:34.7]} 12. dxc5 {[%clk 0:02:36.6]} 12...
Bxc5 {[%clk 0:02:33]} 13. Nb3 {[%clk 0:02:26.7]} 13... Bc2 {[%clk 0:01:56.3]}
14. O-O {[%clk 0:02:02.2]} 14... f6 {[%clk 0:01:51.1]} 15. Bd4 {[%clk
0:01:59.5]} 15... Bxd4 {[%clk 0:01:48.7]} 16. exd4 {[%clk 0:01:56.7]} 16... a6
{[%clk 0:01:40.5]} 17. Bxd7+ {[%clk 0:01:51.4]} 17... Rxd7 {[%clk 0:01:41.4]}
18. Rfe1 {[%clk 0:01:50.8]} 18... Bxb3 {[%clk 0:01:35.4]} 19. axb3 {[%clk
0:01:47.1]} 19... Ke7 {[%clk 0:01:35.6]} 20. Re3 {[%clk 0:01:45.3]} 20... Rd6
{[%clk 0:01:26.2]} 21. b4 {[%clk 0:01:43]} 21... Kf7 {[%clk 0:01:25.4]} 22. Rae1
{[%clk 0:01:41.9]} 22... Re8 {[%clk 0:01:24.2]} 23. f4 {[%clk 0:01:42.2]} 23...
g6 {[%clk 0:01:14.7]} 24. Rh3 {[%clk 0:01:34.6]} 24... Rh8 {[%clk 0:01:04.3]}
25. Rhe3 {[%clk 0:01:29.8]} 25... Qc7 {[%clk 0:01:01.8]} 26. Qc2 {[%clk
0:01:22.5]} 26... Re8 {[%clk 0:00:54.3]} 27. h3 {[%clk 0:01:21.5]} 27... b6
{[%clk 0:00:49.2]} 28. Qf2 {[%clk 0:01:20.2]} 28... a5 {[%clk 0:00:48.8]} 29.
bxa5 {[%clk 0:01:19.8]} 29... bxa5 {[%clk 0:00:49.7]} 30. Qh4 {[%clk 0:01:20.3]}
30... Kg7 {[%clk 0:00:35.2]} 31. f5 {[%clk 0:01:19.9]} 31... Qf7 {[%clk
0:00:34.3]} 32. Qf4 {[%clk 0:01:13]} 32... Rb6 {[%clk 0:00:23.1]} 33. fxe6
{[%clk 0:01:12.3]} 33... Rbxe6 {[%clk 0:00:19.4]} 34. Rxe6 {[%clk 0:01:12.7]}
34... Rxe6 {[%clk 0:00:20.3]} 35. Rxe6 {[%clk 0:01:13.1]} 35... Qxe6 {[%clk
0:00:21.2]} 36. Qc7+ {[%clk 0:01:13.8]} 36... Kh6 {[%clk 0:00:21.8]} 37. Qxa5
{[%clk 0:01:12.5]} 37... Qe1+ {[%clk 0:00:22.3]} 38. Kh2 {[%clk 0:01:13.2]}
38... Qe4 {[%clk 0:00:22.7]} 39. Qc7 {[%clk 0:01:11.3]} 39... g5 {[%clk
0:00:17.6]} 40. b4 {[%clk 0:01:07.4]} 40... Kg6 {[%clk 0:00:06.1]} 41. b5 {[%clk
0:01:06.8]} 41... h5 {[%clk 0:00:05.3]} 42. b6 {[%clk 0:01:05.7]} 42... f5
{[%clk 0:00:03]} 43. b7 {[%clk 0:01:02.6]} 1-0

[Event "Early-Titled-Tuesday-Blitz-June-18-2024"]
[Site "Chess.com"]
[Date "2024.06.18"]
[Round "4"]
[White "biostatistician"]
[Black "Sam_ChessMood"]
[Result "0-1"]
[WhiteElo "2621"]
[BlackElo "2948"]
[TimeControl "180+1"]
[EndTime "8:40:44 PDT"]
[Termination "Sam_ChessMood won by checkmate"]

1. d4 {[%clk 0:03:00.3]} 1... Nf6 {[%clk 0:02:57.2]} 2. Nf3 {[%clk 0:03:00.3]}
2... b6 {[%clk 0:02:56]} 3. c4 {[%clk 0:03:00.6]} 3... Bb7 {[%clk 0:02:54.1]} 4.
Nc3 {[%clk 0:03:00.6]} 4... d5 {[%clk 0:02:46.3]} 5. cxd5 {[%clk 0:02:55]} 5...
Nxd5 {[%clk 0:02:46]} 6. Qc2 {[%clk 0:02:54.4]} 6... Nxc3 {[%clk 0:02:42.1]} 7.
bxc3 {[%clk 0:02:54.5]} 7... e6 {[%clk 0:02:42.5]} 8. e4 {[%clk 0:02:53.7]} 8...
Be7 {[%clk 0:02:41.4]} 9. Bb5+ {[%clk 0:02:51.2]} 9... c6 {[%clk 0:02:40.7]} 10.
Bd3 {[%clk 0:02:51.3]} 10... O-O {[%clk 0:02:33.3]} 11. O-O {[%clk 0:02:51.4]}
11... c5 {[%clk 0:02:33.2]} 12. Be3 {[%clk 0:02:29.4]} 12... cxd4 {[%clk
0:02:30.2]} 13. cxd4 {[%clk 0:02:29.4]} 13... Nc6 {[%clk 0:02:30.4]} 14. Qb2
{[%clk 0:02:10.1]} 14... Rc8 {[%clk 0:02:25.8]} 15. Rac1 {[%clk 0:02:09.2]}
15... Na5 {[%clk 0:02:22.4]} 16. Rxc8 {[%clk 0:01:37.4]} 16... Qxc8 {[%clk
0:02:22.4]} 17. Rc1 {[%clk 0:01:37.7]} 17... Qa8 {[%clk 0:02:21.6]} 18. Nd2
{[%clk 0:01:37.9]} 18... Rc8 {[%clk 0:02:20.8]} 19. f3 {[%clk 0:01:34.4]} 19...
h6 {[%clk 0:02:13.8]} 20. Kf2 {[%clk 0:01:31.6]} 20... Qb8 {[%clk 0:02:10.8]}
21. g3 {[%clk 0:01:31]} 21... Rxc1 {[%clk 0:02:08.3]} 22. Qxc1 {[%clk
0:01:31.1]} 22... Qd8 {[%clk 0:02:08.8]} 23. Nb3 {[%clk 0:01:24.1]} 23... Nc6
{[%clk 0:02:05.2]} 24. Bb5 {[%clk 0:01:17]} 24... Nb4 {[%clk 0:01:54.7]} 25. a3
{[%clk 0:01:09.1]} 25... a6 {[%clk 0:01:54.6]} 26. Be2 {[%clk 0:00:56.1]} 26...
Nc6 {[%clk 0:01:54.1]} 27. a4 {[%clk 0:00:48.4]} 27... Nb4 {[%clk 0:01:45.6]}
28. h4 {[%clk 0:00:20.3]} 28... a5 {[%clk 0:01:45.1]} 29. Bb5 {[%clk 0:00:19]}
29... Bc6 {[%clk 0:01:41]} 30. Qc4 {[%clk 0:00:18.1]} 30... Bxb5 {[%clk
0:01:32.3]} 31. Qxb5 {[%clk 0:00:19]} 31... Qc7 {[%clk 0:01:32.3]} 32. Nd2
{[%clk 0:00:17.1]} 32... Qc3 {[%clk 0:01:16.6]} 33. Qxb6 {[%clk 0:00:14.4]}
33... Nc2 {[%clk 0:01:03.9]} 34. Bf4 {[%clk 0:00:14.2]} 34... Bb4 {[%clk
0:00:52.3]} 35. Nf1 {[%clk 0:00:10.6]} 35... Qe1+ {[%clk 0:00:50.7]} 36. Kg2
{[%clk 0:00:11]} 36... Qe2+ {[%clk 0:00:51]} 37. Kg1 {[%clk 0:00:10.5]} 37...
Ne1 {[%clk 0:00:46.2]} 38. Nh2 {[%clk 0:00:09.3]} 38... Qg2# {[%clk 0:00:45.6]}
0-1

[Event "Early-Titled-Tuesday-Blitz-June-18-2024"]
[Site "Chess.com"]
[Date "2024.06.18"]
[Round "4"]
[White "hsd2016"]
[Black "edgarhay012"]
[Result "0-1"]
[WhiteElo "2429"]
[BlackElo "2679"]
[TimeControl "180+1"]
[EndTime "8:40:44 PDT"]
[Termination "edgarhay012 won by resignation"]

1. Nf3 {[%clk 0:03:00.9]} 1... g6 {[%clk 0:02:58.9]} 2. e4 {[%clk 0:03:00.8]}
2... Bg7 {[%clk 0:02:58.6]} 3. Bc4 {[%clk 0:03:01]} 3... d6 {[%clk 0:02:58.4]}
4. d4 {[%clk 0:03:01.1]} 4... e6 {[%clk 0:02:58.5]} 5. O-O {[%clk 0:02:59.8]}
5... Ne7 {[%clk 0:02:59]} 6. Bb3 {[%clk 0:02:58.9]} 6... O-O {[%clk 0:02:59.2]}
7. Re1 {[%clk 0:02:58.9]} 7... d5 {[%clk 0:02:59.5]} 8. exd5 {[%clk 0:02:58.1]}
8... Nxd5 {[%clk 0:02:58.7]} 9. c4 {[%clk 0:02:58.2]} 9... Nf6 {[%clk
0:02:58.6]} 10. Nc3 {[%clk 0:02:58.6]} 10... c5 {[%clk 0:02:58.2]} 11. d5 {[%clk
0:02:57.2]} 11... exd5 {[%clk 0:02:58.1]} 12. cxd5 {[%clk 0:02:56.9]} 12... Bg4
{[%clk 0:02:57.5]} 13. h3 {[%clk 0:02:55.5]} 13... Bxf3 {[%clk 0:02:57.8]} 14.
Qxf3 {[%clk 0:02:56.4]} 14... Nbd7 {[%clk 0:02:58.6]} 15. Bg5 {[%clk 0:02:56.5]}
15... h6 {[%clk 0:02:57.2]} 16. Bf4 {[%clk 0:02:56.5]} 16... a6 {[%clk 0:02:54]}
17. d6 {[%clk 0:02:44.7]} 17... b5 {[%clk 0:02:50.6]} 18. Nd5 {[%clk 0:02:40.6]}
18... c4 {[%clk 0:02:48.6]} 19. Ne7+ {[%clk 0:02:40.3]} 19... Kh7 {[%clk
0:02:45.4]} 20. Bc2 {[%clk 0:02:39.8]} 20... Re8 {[%clk 0:02:36.2]} 21. Qg3
{[%clk 0:02:37.1]} 21... Nf8 {[%clk 0:02:36]} 22. Qh4 {[%clk 0:02:09.5]} 22...
Ng8 {[%clk 0:01:48.8]} 23. Rad1 {[%clk 0:01:52.8]} 23... Bf6 {[%clk 0:01:40.4]}
24. Qg4 {[%clk 0:01:43.4]} 24... Qd7 {[%clk 0:00:54.3]} 25. Bf5 {[%clk
0:01:17.7]} 25... Qa7 {[%clk 0:00:43.2]} 26. Nxg8 {[%clk 0:00:54.1]} 26... Rxe1+
{[%clk 0:00:37]} 27. Rxe1 {[%clk 0:00:54.1]} 27... Kxg8 {[%clk 0:00:36.2]} 28.
Bxh6 {[%clk 0:00:47.4]} 28... Qc5 {[%clk 0:00:32.6]} 29. Bxf8 {[%clk 0:00:16.6]}
29... Rxf8 {[%clk 0:00:31.3]} 30. Bxg6 {[%clk 0:00:13.3]} 30... fxg6 {[%clk
0:00:32.2]} 31. Qxg6+ {[%clk 0:00:13.4]} 31... Bg7 {[%clk 0:00:32.8]} 32. d7
{[%clk 0:00:08.3]} 32... Qxf2+ {[%clk 0:00:32.4]} 33. Kh2 {[%clk 0:00:06.6]}
33... Qxe1 {[%clk 0:00:31.8]} 0-1

[Event "Early-Titled-Tuesday-Blitz-June-18-2024"]
[Site "Chess.com"]
[Date "2024.06.18"]
[Round "4"]
[White "atbenina64"]
[Black "jcibarra"]
[Result "0-1"]
[WhiteElo "2830"]
[BlackElo "3011"]
[TimeControl "180+1"]
[EndTime "8:40:46 PDT"]
[Termination "jcibarra won by resignation"]

1. c4 {[%clk 0:03:00.2]} 1... e5 {[%clk 0:02:58.5]} 2. Nc3 {[%clk 0:03:00]} 2...
Nf6 {[%clk 0:02:57.2]} 3. Nf3 {[%clk 0:02:59.4]} 3... d6 {[%clk 0:02:57.7]} 4.
d4 {[%clk 0:02:55.8]} 4... e4 {[%clk 0:02:57.4]} 5. Ng5 {[%clk 0:02:46.6]} 5...
Qe7 {[%clk 0:02:57.5]} 6. Qc2 {[%clk 0:02:44.3]} 6... Bf5 {[%clk 0:02:56.7]} 7.
f3 {[%clk 0:02:40.7]} 7... Nc6 {[%clk 0:02:56.4]} 8. e3 {[%clk 0:02:36.9]} 8...
Nxd4 {[%clk 0:02:50]} 9. Qa4+ {[%clk 0:02:09]} 9... Nc6 {[%clk 0:02:49.4]} 10.
Nd5 {[%clk 0:02:05.7]} 10... Nxd5 {[%clk 0:02:48.1]} 11. cxd5 {[%clk 0:02:06.6]}
11... Qxg5 {[%clk 0:02:48.4]} 12. dxc6 {[%clk 0:02:05.8]} 12... b6 {[%clk
0:02:48.9]} 13. g4 {[%clk 0:01:51.8]} 13... Qh4+ {[%clk 0:02:44]} 14. Kd1 {[%clk
0:01:49.5]} 14... exf3 {[%clk 0:02:39.8]} 15. h3 {[%clk 0:01:46]} 15... Be7
{[%clk 0:02:31.6]} 16. Qf4 {[%clk 0:01:42.4]} 16... Be6 {[%clk 0:02:22.8]} 17.
Qxf3 {[%clk 0:01:41.8]} 17... h5 {[%clk 0:02:23.5]} 18. Rg1 {[%clk 0:01:40.3]}
18... hxg4 {[%clk 0:02:23.2]} 19. hxg4 {[%clk 0:01:41.2]} 19... Qh2 {[%clk
0:02:20.1]} 20. Rg2 {[%clk 0:01:36.5]} 20... Qe5 {[%clk 0:02:18.8]} 21. e4
{[%clk 0:01:28.4]} 21... d5 {[%clk 0:02:02.2]} 22. Bf4 {[%clk 0:01:16.8]} 22...
dxe4 {[%clk 0:02:00.7]} 23. Bxe5 {[%clk 0:01:15.5]} 23... exf3 {[%clk
0:02:00.7]} 24. Rg3 {[%clk 0:01:15.2]} 24... O-O-O+ {[%clk 0:01:58.7]} 25. Kc2
{[%clk 0:01:12.1]} 25... Rh2+ {[%clk 0:01:48.2]} 26. Kc3 {[%clk 0:01:12.2]}
26... f6 {[%clk 0:01:28.9]} 27. Bd4 {[%clk 0:01:08.1]} 27... Bb4+ {[%clk
0:01:15.7]} 28. Kxb4 {[%clk 0:01:03.5]} 28... Rxd4+ {[%clk 0:01:16.2]} 29. Kc3
{[%clk 0:01:04.4]} 29... Rd6 {[%clk 0:01:08]} 30. Bb5 {[%clk 0:01:00.4]} 30...
f2 {[%clk 0:01:02.2]} 31. Re3 {[%clk 0:00:54.2]} 31... Kd8 {[%clk 0:00:56.7]}
32. Rf1 {[%clk 0:00:48.2]} 32... a6 {[%clk 0:00:51.6]} 33. Bxa6 {[%clk
0:00:39.7]} 33... Rxc6+ {[%clk 0:00:50.9]} 34. Kd2 {[%clk 0:00:35.6]} 34... Rd6+
{[%clk 0:00:50.8]} 35. Kc3 {[%clk 0:00:31.2]} 35... Bxg4 {[%clk 0:00:50.2]} 36.
Bb5 {[%clk 0:00:27.7]} 36... c6 {[%clk 0:00:49.3]} 37. Bd3 {[%clk 0:00:27.1]}
37... Bh3 {[%clk 0:00:41.9]} 38. Rxf2 {[%clk 0:00:23.3]} 38... Rxf2 {[%clk
0:00:39.4]} 39. Rxh3 {[%clk 0:00:24.2]} 39... Rd7 {[%clk 0:00:35.1]} 0-1